fUSD/lending_fUSD_20240331
["ID","MTS","AMOUNT","RATE_DAILY","PERIOD"]
[321088339,1711890646514,-500.0,0.00054794,120]
[321088340,1711890646523,-319.07200216,0.00054794,120]
[321088341,1711890646533,-514.51024747,0.00054794,120]
[321088342,1711890646696,-580.44482398,0.00054794,120]
[321088343,1711890646705,-500.0,0.00054794,120]
[321088344,1711890646714,-500.0,0.00054794,120]
[321088345,1711890646724,-500.0,0.00054794,120]
[321088346,1711890646733,-500.0,0.00054794,120]
[321088347,1711890646742,-516.93040204,0.00054794,120]
[321088348,1711890646752,-500.0,0.00054794,120]
[321088349,1711890646762,-522.49150294,0.00054794,120]
[321088350,1711890646771,-500.0,0.00054794,120]
[321088351,1711890646781,-500.0,0.00054794,120]
[321088352,1711890646790,-500.0,0.00054794,120]
[321088353,1711890646800,-526.76409449,0.00054794,120]
[321088354,1711890646810,-518.19104072,0.00054794,120]
[321088355,1711890646819,-500.0,0.00054794,120]
[321088356,1711890646829,-561.94001512,0.00054794,120]
[321088357,1711890646838,-529.61968362,0.00054794,120]
[321088358,1711890646848,-500.0,0.00054794,120]
[321088359,1711890646858,-510.32110796,0.00054794,120]
[321088360,1711890646868,-500.0,0.00054794,120]
[321088361,1711890646877,-525.58817892,0.00054794,120]
[321088362,1711890646887,-500.0,0.00054794,120]
[321088363,1711890646896,-526.48362593,0.00054794,120]
[321088364,1711890646905,-500.0,0.00054794,120]
[321088365,1711890646915,-500.0,0.00054794,120]
[321088366,1711890646924,-500.0,0.00054794,120]
[321088367,1711890646934,-500.0,0.00054794,120]
[321088368,1711890646943,-560.28,0.00054794,120]
[321088369,1711890646952,-500.0,0.00054794,120]
[321088370,1711890646962,-500.0,0.00054794,120]
[321088371,1711890646972,-500.26869853,0.00054794,2]
[321088372,1711890646982,-500.0,0.00054794,120]
[321088373,1711890646991,-500.0,0.00054794,120]
[321088374,1711890647000,-500.0,0.00054794,120]
[321088375,1711890647009,-585.09468047,0.00054794,120]
[321088376,1711890647019,-500.0,0.00054794,120]
[321088377,1711890647028,-500.0,0.00054794,120]
[321088378,1711890647037,-514.09378861,0.00054794,120]
[321088379,1711890647046,-500.0,0.00054794,120]
[321088380,1711890647055,-507.47078617,0.00054794,120]
[321088381,1711890647064,-500.0,0.00054794,120]
[321088382,1711890647074,-500.0,0.00054794,120]
[321088383,1711890647083,-330.97915731,0.00054794,120]
[321088384,1711890647092,-500.0,0.00054794,120]
[321088385,1711890647101,-500.0,0.00054794,120]
[321088386,1711890647111,-500.0,0.00054794,120]
[321088387,1711890647120,-500.0,0.00054794,120]
[321088388,1711890647130,-500.0,0.00054794,120]
[321088389,1711890647139,-500.0,0.00054794,120]
[321088390,1711890647148,-500.0,0.00054794,120]
[321088391,1711890647157,-500.0,0.00054794,120]
[321088392,1711890647166,-500.0,0.00054794,120]
[321088393,1711890647175,-500.0,0.00054794,120]
[321088394,1711890647185,-1000.0,0.00054794,120]
[321088395,1711890647194,-500.0,0.00054794,120]
[321088396,1711890647203,-500.0,0.00054794,120]
[321088397,1711890647213,-654.97,0.00054794,120]
[321088398,1711890647222,-525.3415144,0.00054794,120]
[321088399,1711890647231,-500.0,0.00054794,120]
[321088400,1711890647241,-500.0,0.00054794,120]
[321088401,1711890647250,-500.0,0.00054794,120]
[321088402,1711890647259,-500.0,0.00054794,120]
[321088403,1711890647269,-523.74,0.00054794,120]
[321088404,1711890647279,-500.0,0.00054794,120]
[321088405,1711890647289,-500.0,0.00054794,120]
[321088406,1711890647298,-500.0,0.00054794,120]
[321088407,1711890647308,-500.0,0.00054794,120]
[321088408,1711890647318,-500.0,0.00054794,120]
[321088409,1711890647327,-500.0,0.00054794,120]
[321088410,1711890647336,-510.6088244,0.00054794,120]
[321088411,1711890647345,-500.0,0.00054794,120]
[321088412,1711890647354,-500.0,0.00054794,120]
[321088413,1711890647363,-500.0,0.00054794,120]
[321088414,1711890647372,-500.0,0.00054794,120]
[321088415,1711890647382,-563.56,0.00054794,120]
[321088416,1711890647391,-500.0,0.00054794,120]
[321088417,1711890647400,-634.03485616,0.00054794,120]
[321088418,1711890647410,-500.0,0.00054794,120]
[321088419,1711890647419,-500.0,0.00054794,120]
[321088420,1711890647428,-150.0,0.00054794,120]
[321088421,1711890647437,-1000.0,0.00054794,120]
[321088422,1711890647446,-150.0,0.00054794,120]
[321088423,1711890647454,-556.29,0.00054794,120]
[321088424,1711890647463,-500.0,0.00054794,120]
[321088425,1711890647473,-500.0,0.00054794,120]
[321088426,1711890647483,-500.0,0.00054794,120]
[321088427,1711890647495,-534.35903184,0.00054794,120]
[321088428,1711890647504,-500.0,0.00054794,120]
[321088429,1711890647514,-506.42,0.00054794,120]
[321088430,1711890647523,-500.0,0.00054794,120]
[321088431,1711890647533,-500.0,0.00054794,120]
[321088432,1711890647543,-500.0,0.00054794,120]
[321088433,1711890647553,-537.29,0.00054794,120]
[321088434,1711890647563,-500.0,0.00054794,120]
[321088435,1711890647573,-500.0,0.00054794,120]
[321088436,1711890647583,-500.0,0.00054794,120]
[321088437,1711890647593,-500.0,0.00054794,120]
[321088438,1711890647603,-500.0,0.00054794,120]
[321088439,1711890647613,-500.0,0.00054794,120]
[321088440,1711890647624,-225.03754639,0.00054794,120]
[321088441,1711890647633,-500.0,0.00054794,120]
[321088442,1711890647645,-500.0,0.00054794,120]
[321088443,1711890647654,-500.0,0.00054794,120]
[321088444,1711890647665,-500.0,0.00054794,120]
[321088445,1711890647675,-500.0,0.00054794,120]
[321088446,1711890647686,-500.0,0.00054794,120]
[321088447,1711890647696,-500.0,0.00054794,120]
[321088448,1711890647706,-500.0,0.00054794,120]
[321088449,1711890647715,-500.0,0.00054794,2]
[321088450,1711890647725,-500.0,0.00054794,120]
[321088451,1711890647736,-500.0,0.00054794,7]
[321088452,1711890647745,-500.0,0.00054794,120]
[321088453,1711890647756,-500.0,0.00054794,120]
[321088454,1711890647766,-500.0,0.00054794,120]
[321088455,1711890647776,-500.0,0.00054794,120]
[321088456,1711890647786,-500.0,0.00054794,120]
[321088457,1711890647796,-500.0,0.00054794,120]
[321088458,1711890647806,-264.98068818,0.00054794,120]
[321088459,1711890647815,-500.0,0.00054794,120]
[321088460,1711890647825,-500.0,0.00054794,120]
[321088461,1711890647835,-500.0,0.00054794,120]
[321088462,1711890647844,-500.0,0.00054794,120]
[321088463,1711890647854,-500.0,0.00054794,120]
[321088464,1711890647863,-500.0,0.00054794,120]
[321088465,1711890647873,-500.0,0.00054794,120]
[321088466,1711890647882,-500.0,0.00054794,120]
[321088467,1711890647892,-1139.05,0.00054794,120]
[321088468,1711890647901,-500.0,0.00054794,50]
[321088469,1711890647911,-500.0,0.00054794,120]
[321088470,1711890647921,-616.46,0.00054794,120]
[321088471,1711890647931,-500.0,0.00054794,120]
[321088472,1711890647940,-500.0,0.00054794,120]
[321088473,1711890647949,-500.0,0.00054794,120]
[321088474,1711890647959,-500.0,0.00054794,120]
[321088475,1711890647969,-500.0,0.00054794,120]
[321088476,1711890647978,-500.0,0.00054794,120]
[321088477,1711890647988,-500.0,0.00054794,60]
[321088478,1711890647997,-503.81247367,0.00054794,120]
[321088479,1711890648007,-500.0,0.00054794,120]
[321088480,1711890648016,-500.0,0.00054794,120]
[321088481,1711890648026,-500.0,0.00054794,120]
[321088482,1711890648034,-500.0,0.00054794,120]
[321088483,1711890648044,-155.0,0.00054794,120]
[321088484,1711890648052,-500.0,0.00054794,120]
[321088485,1711890648062,-500.0,0.00054794,120]
[321088486,1711890648071,-500.0,0.00054794,120]
[321088487,1711890648080,-500.0,0.00054794,120]
[321088488,1711890648089,-500.0,0.00054794,120]
[321088489,1711890648097,-500.0,0.00054794,120]
[321088490,1711890648106,-500.0,0.00054794,120]
[321088491,1711890648115,-1647.33,0.00054794,120]
[321088492,1711890648125,-500.0,0.00054794,120]
[321088493,1711890648134,-500.0,0.00054794,120]
[321088494,1711890648146,-2280.35,0.00054794,120]
[321088495,1711890648156,-1969.2,0.00054794,120]
[321088496,1711890648166,-500.0,0.00054794,120]
[321088497,1711890648175,-500.0,0.00054794,120]
[321088498,1711890648184,-500.0,0.00054794,120]
[321088499,1711890648193,-515.43,0.00054794,120]
[321088500,1711890648202,-500.0,0.00054794,120]
[321088501,1711890648212,-11044.72,0.00054794,120]
[321088502,1711890648222,-500.0,0.00054794,120]
[321088503,1711890648232,-500.0,0.00054794,120]
[321088504,1711890648241,-500.0,0.00054794,120]
[321088505,1711890648250,-500.0,0.00054794,120]
[321088506,1711890648260,-1309.04,0.00054794,120]
[321088507,1711890648269,-2277.86,0.00054794,120]
[321088508,1711890648278,-500.0,0.00054794,120]
[321088509,1711890648287,-2650.98,0.00054794,120]
[321088510,1711890648297,-500.0,0.00054794,120]
[321088511,1711890648308,-500.0,0.00054794,120]
[321088512,1711890648317,-500.0,0.00054794,120]
[321088513,1711890648327,-500.0,0.00054794,120]
[321088514,1711890648337,-3032.14,0.00054794,120]
[321088515,1711890648347,-500.0,0.00054794,120]
[321088516,1711890648357,-500.0,0.00054794,120]
[321088517,1711890648367,-500.0,0.00054794,120]
[321088518,1711890648376,-500.0,0.00054794,120]
[321088519,1711890648385,-509.13612486,0.00054794,120]
[321088520,1711890648394,-520.11498087,0.00054794,120]
[321088521,1711890648403,-500.0,0.00054794,120]
[321088522,1711890648412,-500.0,0.00054794,120]
[321088523,1711890648421,-577.11,0.00054794,120]
[321088524,1711890648431,-500.0,0.00054794,120]
[321088525,1711890648440,-500.0,0.00054794,120]
[321088526,1711890648449,-500.0,0.00054794,120]
[321088527,1711890648458,-978.66,0.00054794,120]
[321088528,1711890648467,-1119.85,0.00054794,120]
[321088529,1711890648476,-500.0,0.00054794,120]
[321088530,1711890648487,-500.0,0.00054794,120]
[321088531,1711890648496,-500.0,0.00054794,120]
[321088532,1711890648505,-251.976457,0.00054794,120]
[321088533,1711890648515,-500.0,0.00054794,120]
[321088534,1711890648524,-500.0,0.00054794,120]
[321088535,1711890648535,-500.0,0.00054794,7]
[321088536,1711890648544,-516.77026715,0.00054794,120]
[321088537,1711890648553,-251.976457,0.00054794,120]
[321088538,1711890648562,-500.0,0.00054794,120]
[321088539,1711890648571,-508.48280846,0.00054794,120]
[321088540,1711890648581,-500.0,0.00054794,120]
[321088541,1711890648590,-500.0,0.00054794,120]
[321088542,1711890648599,-500.0,0.00054794,120]
[321088543,1711890648608,-507.35663284,0.00054794,120]
[321088544,1711890648618,-503.64953808,0.00054794,120]
[321088545,1711890648627,-500.0,0.00054794,120]
[321088546,1711890648636,-536.69413956,0.00054794,120]
[321088547,1711890648646,-7777.83,0.00054794,120]
[321088548,1711890648655,-500.0,0.00054794,120]
[321088549,1711890648664,-500.0,0.00054794,120]
[321088550,1711890648675,-500.0,0.00054794,120]
[321088551,1711890648685,-1346.83,0.00054794,120]
[321088552,1711890648694,-519.04306239,0.00054794,120]
[321088553,1711890648704,-2591.83,0.00054794,120]
[321088554,1711890648714,-506.44449906,0.00054794,120]
[321088555,1711890648723,-500.0,0.00054794,120]
[321088556,1711890648733,-500.0,0.00054794,120]
[321088557,1711890648743,-500.0,0.00054794,120]
[321088558,1711890648752,-500.0,0.00054794,120]
[321088559,1711890648762,-500.0,0.00054794,120]
[321088560,1711890648772,-510.37744293,0.00054794,120]
[321088561,1711890648781,-510.45684659,0.00054794,120]
[321088562,1711890648790,-500.0,0.00054794,120]
[321088563,1711890648800,-2450.66,0.00054794,120]
[321088564,1711890648809,-505.00679367,0.00054794,120]
[321088565,1711890648818,-595.24,0.00054794,120]
[321088566,1711890648828,-5656.68,0.00054794,120]
[321088567,1711890648837,-500.0,0.00054794,120]
[321088568,1711890648847,-500.0,0.00054794,120]
[321088569,1711890648856,-509.95907377,0.00054794,120]
[321088570,1711890648865,-300.72302265,0.00054794,120]
[321088571,1711890648875,-557.93,0.00054794,120]
[321088572,1711890648884,-500.0,0.00054794,120]
[321088573,1711890648893,-588.1,0.00054794,16]
[321088574,1711890648903,-1878.45,0.00054794,120]
[321088575,1711890648914,-500.0,0.00054794,120]
[321088576,1711890648925,-500.0,0.00054794,120]
[321088577,1711890648935,-500.0,0.00054794,120]
[321088578,1711890648944,-500.0,0.00054794,120]
[321088579,1711890648953,-500.0,0.00054794,120]
[321088580,1711890648962,-1202.32,0.00054794,120]
[321088581,1711890648971,-492.13954598,0.00054794,120]
[321088582,1711890648980,-506.40339584,0.00054794,120]
[321088583,1711890648989,-2751.89,0.00054794,120]
[321088584,1711890648998,-500.0,0.00054794,120]
[321088585,1711890649008,-500.0,0.00054794,120]
[321088586,1711890649017,-507.01205684,0.00054794,120]
[321088587,1711890649027,-500.0,0.00054794,120]
[321088588,1711890649037,-500.0,0.00054794,120]
[321088589,1711890649046,-500.0,0.00054794,120]
[321088590,1711890649055,-503.67977842,0.00054794,120]
[321088591,1711890649065,-500.0,0.00054794,120]
[321088592,1711890649074,-500.0,0.00054794,120]
[321088593,1711890649083,-500.0,0.00054794,120]
[321088594,1711890649091,-500.0,0.00054794,120]
[321088595,1711890649100,-506.88757674,0.00054794,120]
[321088596,1711890649110,-500.0,0.00054794,120]
[321088597,1711890649120,-507.82113677,0.00054794,120]
[321088598,1711890649130,-500.0,0.00054794,120]
[321088599,1711890649140,-504.5074255,0.00054794,120]
[321088600,1711890649150,-500.0,0.00054794,120]
[321088601,1711890649159,-508.09093481,0.00054794,120]
[321088602,1711890649168,-505.93649329,0.00054794,120]
[321088603,1711890649177,-3264.01,0.00054794,120]
[321088604,1711890649186,-500.0,0.00054794,120]
[321088605,1711890649195,-500.0,0.00054794,120]
[321088606,1711890649204,-500.0,0.00054794,120]
[321088607,1711890649213,-500.0,0.00054794,120]
[321088608,1711890649221,-506.41653785,0.00054794,120]
[321088609,1711890649230,-500.0,0.00054794,120]
[321088610,1711890649239,-500.0,0.00054794,120]
[321088611,1711890649250,-500.0,0.00054794,120]
[321088612,1711890649260,-500.0,0.00054794,120]
[321088613,1711890649269,-500.0,0.00054794,120]
[321088614,1711890649278,-505.44910944,0.00054794,120]
[321088615,1711890649287,-500.0,0.00054794,120]
[321088616,1711890649297,-509.04386887,0.00054794,120]
[321088617,1711890649305,-510.38084406,0.00054794,120]
[321088618,1711890649314,-500.0,0.00054794,120]
[321088619,1711890649324,-500.0,0.00054794,120]
[321088620,1711890649333,-500.0,0.00054794,120]
[321088621,1711890649343,-500.0,0.00054794,120]
[321088622,1711890649353,-620.54,0.00054794,120]
[321088623,1711890649362,-500.0,0.00054794,120]
[321088624,1711890649372,-512.17392607,0.00054794,120]
[321088625,1711890649381,-500.0,0.00054794,120]
[321088626,1711890649390,-1852.77,0.00054794,120]
[321088627,1711890649399,-500.0,0.00054794,120]
[321088628,1711890649408,-500.0,0.00054794,120]
[321088629,1711890649417,-1531.24,0.00054794,120]
[321088630,1711890649426,-500.0,0.00054794,120]
[321088631,1711890649436,-500.0,0.00054794,120]
[321088632,1711890649445,-500.0,0.00054794,120]
[321088633,1711890649454,-500.0,0.00054794,120]
[321088634,1711890649463,-490.0,0.00054794,120]
[321088635,1711890649472,-500.0,0.00054794,120]
[321088636,1711890649481,-500.0,0.00054794,120]
[321088637,1711890649495,-1444.64,0.00054794,120]
[321088638,1711890649504,-500.0,0.00054794,120]
[321088639,1711890649513,-500.0,0.00054794,120]
[321088640,1711890649522,-500.0,0.00054794,120]
[321088641,1711890649532,-567.22,0.00054794,120]
[321088642,1711890649541,-5674.98,0.00054794,120]
[321088643,1711890649550,-506.60780614,0.00054794,120]
[321088644,1711890649560,-500.0,0.00054794,120]
[321088645,1711890649570,-962.6,0.00054794,120]
[321088646,1711890649579,-500.0,0.00054794,120]
[321088647,1711890649589,-1699.03,0.00054794,120]
[321088648,1711890649598,-500.0,0.00054794,120]
[321088649,1711890649608,-6457.47,0.00054794,120]
[321088650,1711890649617,-500.0,0.00054794,120]
[321088651,1711890649626,-1686.23,0.00054794,120]
[321088652,1711890649636,-508.94865386,0.00054794,120]
[321088653,1711890649646,-497.51864269,0.00054794,120]
[321088654,1711890649656,-500.0,0.00054794,120]
[321088655,1711890649667,-500.0,0.00054794,120]
[321088656,1711890649677,-500.0,0.00054794,120]
[321088657,1711890649687,-505.15513526,0.00054794,120]
[321088658,1711890649696,-500.0,0.00054794,120]
[321088659,1711890649705,-500.0,0.00054794,120]
[321088660,1711890649715,-500.0,0.00054794,120]
[321088661,1711890649724,-500.04868569,0.00054794,120]
[321088662,1711890649733,-500.0,0.00054794,120]
[321088663,1711890649744,-500.0,0.00054794,120]
[321088664,1711890649753,-10031.1,0.00054794,120]
[321088665,1711890649762,-2964.31,0.00054794,120]
[321088666,1711890649771,-500.0,0.00054794,120]
[321088667,1711890649780,-509.31577633,0.00054794,120]
[321088668,1711890649789,-500.0,0.00054794,120]
[321088669,1711890649798,-507.57072457,0.00054794,120]
[321088670,1711890649807,-500.0,0.00054794,120]
[321088671,1711890649816,-508.23925436,0.00054794,120]
[321088672,1711890649825,-500.0,0.00054794,120]
[321088673,1711890649834,-500.0,0.00054794,120]
[321088674,1711890649844,-500.0,0.00054794,120]
[321088675,1711890649853,-500.0,0.00054794,120]
[321088676,1711890649864,-500.0,0.00054794,120]
[321088677,1711890649875,-500.0,0.00054794,120]
[321088678,1711890649884,-535.64496254,0.00054794,120]
[321088679,1711890649893,-521.39855845,0.00054794,120]
[321088680,1711890649902,-1738.4,0.00054794,120]
[321088681,1711890649911,-1786.68,0.00054794,120]
[321088682,1711890649920,-500.0,0.00054794,120]
[321088683,1711890649929,-500.0,0.00054794,2]
[321088684,1711890649938,-500.0,0.00054794,120]
[321088685,1711890649946,-500.0,0.00054794,120]
[321088686,1711890649955,-500.0,0.00054794,120]
[321088687,1711890649964,-500.0,0.00054794,120]
[321088688,1711890649973,-508.75756763,0.00054794,120]
[321088689,1711890649982,-1500.14,0.00054794,120]
[321088690,1711890649991,-500.0,0.00054794,120]
[321088691,1711890650000,-500.0,0.00054794,120]
[321088692,1711890650009,-508.10048,0.00054794,120]
[321088693,1711890650018,-500.0,0.00054794,120]
[321088694,1711890650028,-512.6312292,0.00054794,120]
[321088695,1711890650037,-562.17,0.00054794,120]
[321088696,1711890650046,-693.94,0.00054794,120]
[321088697,1711890650055,-2517.9,0.00054794,120]
[321088698,1711890650064,-524.99784926,0.00054794,120]
[321088699,1711890650073,-500.0,0.00054794,120]
[321088700,1711890650083,-500.0,0.00054794,120]
[321088701,1711890650091,-500.0,0.00054794,120]
[321088702,1711890650101,-510.09541908,0.00054794,120]
[321088703,1711890650110,-500.0,0.00054794,120]
[321088704,1711890650119,-500.0,0.00054794,120]
[321088705,1711890650128,-500.0,0.00054794,120]
[321088706,1711890650137,-500.0,0.00054794,120]
[321088707,1711890650147,-507.0063747,0.00054794,120]
[321088708,1711890650157,-500.0,0.00054794,120]
[321088709,1711890650166,-500.0,0.00054794,120]
[321088710,1711890650175,-500.0,0.00054794,120]
[321088711,1711890650186,-509.00006241,0.00054794,120]
[321088712,1711890650195,-500.0,0.00054794,120]
[321088713,1711890650209,-500.0,0.00054794,120]
[321088714,1711890650218,-4170.51,0.00054794,120]
[321088715,1711890650228,-512.95986801,0.00054794,120]
[321088716,1711890650237,-500.0,0.00054794,120]
[321088717,1711890650247,-811.03,0.00054794,120]
[321088718,1711890650257,-500.0,0.00054794,120]
[321088719,1711890650267,-454.11622247,0.00054794,120]
[321088720,1711890650277,-500.0,0.00054794,120]
[321088721,1711890650286,-514.74491693,0.00054794,120]
[321088722,1711890650296,-303.95358783,0.00054794,120]
[321088723,1711890650306,-500.0,0.00054794,120]
[321088724,1711890650315,-500.0,0.00054794,120]
[321088725,1711890650324,-500.0,0.00054794,120]
[321088726,1711890650334,-507.20708028,0.00054794,120]
[321088727,1711890650343,-2488.29,0.00054794,120]
[321088728,1711890650353,-505.09780403,0.00054794,120]
[321088729,1711890650362,-500.0,0.00054794,120]
[321088730,1711890650372,-500.0,0.00054794,120]
[321088731,1711890650381,-506.33737897,0.00054794,120]
[321088732,1711890650391,-500.0,0.00054794,120]
[321088733,1711890650400,-151.0,0.00054794,120]
[321088734,1711890650409,-559.28,0.00054794,120]
[321088735,1711890650418,-500.0,0.00054794,120]
[321088736,1711890650427,-500.0,0.00054794,120]
[321088737,1711890650437,-14317.17,0.00054794,120]
[321088738,1711890650447,-500.0,0.00054794,120]
[321088739,1711890650455,-500.0,0.00054794,120]
[321088740,1711890650464,-500.0,0.00054794,120]
[321088741,1711890650473,-500.0,0.00054794,120]
[321088742,1711890650482,-1685.81,0.00054794,120]
[321088743,1711890650492,-500.0,0.00054794,120]
[321088744,1711890650502,-1854.38,0.00054794,120]
[321088745,1711890650513,-500.0,0.00054794,120]
[321088746,1711890650523,-500.0,0.00054794,120]
[321088747,1711890650532,-500.0,0.00054794,120]
[321088748,1711890650542,-500.0,0.00054794,120]
[321088749,1711890650551,-500.0,0.00054794,120]
[321088750,1711890650560,-500.0,0.00054794,120]
[321088751,1711890650570,-500.0,0.00054794,120]
[321088752,1711890650581,-500.0,0.00054794,120]
[321088753,1711890650734,-12588.85,0.00054794,120]
[321088754,1711890650765,-512.77136103,0.00054794,120]
[321088755,1711890650774,-500.0,0.00054794,120]
[321088756,1711890650784,-500.0,0.00054794,120]
[321088757,1711890650794,-1750.28,0.00054794,120]
[321088758,1711890650804,-500.0,0.00054794,120]
[321088759,1711890650813,-500.0,0.00054794,120]
[321088760,1711890650823,-521.74001734,0.00054794,120]
[321088761,1711890650833,-3585.51,0.00054794,21]
[321088762,1711890650843,-500.0,0.00054794,120]
[321088763,1711890650852,-500.0,0.00054794,120]
[321088764,1711890650862,-500.0,0.00054794,120]
[321088765,1711890650872,-519.8,0.00054794,120]
[321088766,1711890650881,-1112.33,0.00054794,120]
[321088767,1711890650891,-500.0,0.00054794,120]
[321088768,1711890650901,-510.41673009,0.00054794,120]
[321088769,1711890650910,-500.0,0.00054794,120]
[321088770,1711890650920,-506.89141241,0.00054794,120]
[321088771,1711890650930,-502.7646084,0.00054794,120]
[321088772,1711890650939,-500.0,0.00054794,120]
[321088773,1711890650948,-596.3,0.00054794,120]
[321088774,1711890650957,-500.0,0.00054794,120]
[321088775,1711890650967,-500.0,0.00054794,120]
[321088776,1711890650977,-500.0,0.00054794,120]
[321088777,1711890650987,-500.0,0.00054794,120]
[321088778,1711890650996,-300.0,0.00054794,2]
[321088779,1711890651006,-500.0,0.00054794,120]
[321088780,1711890651016,-524.87,0.00054794,120]
[321088781,1711890651025,-500.0,0.00054794,120]
[321088782,1711890651036,-1107.53,0.00054794,120]
[321088783,1711890651045,-500.0,0.00054794,120]
[321088784,1711890651055,-503.25018709,0.00054794,120]
[321088785,1711890651064,-500.0,0.00054794,120]
[321088786,1711890651074,-500.90663068,0.00054794,2]
[321088787,1711890651084,-500.0,0.00054794,120]
[321088788,1711890651094,-500.0,0.00054794,120]
[321088789,1711890651104,-500.0,0.00054794,120]
[321088790,1711890651113,-500.0,0.00054794,120]
[321088791,1711890651123,-500.0,0.00054794,120]
[321088792,1711890651133,-605.34452544,0.00054794,120]
[321088793,1711890651144,-500.0,0.00054794,120]
[321088794,1711890651154,-500.0,0.00054794,120]
[321088795,1711890651163,-500.0,0.00054794,120]
[321088796,1711890651173,-1340.14,0.00054794,120]
[321088797,1711890651184,-500.0,0.00054794,120]
[321088798,1711890651193,-511.9783462,0.00054794,120]
[321088799,1711890651203,-506.38038793,0.00054794,120]
[321088800,1711890651212,-1373.29,0.00054794,120]
[321088801,1711890651222,-500.0,0.00054794,120]
[321088802,1711890651231,-500.0,0.00054794,120]
[321088803,1711890651240,-151.0,0.00054794,120]
[321088804,1711890651250,-512.50074871,0.00054794,120]
[321088805,1711890651259,-500.0,0.00054794,120]
[321088806,1711890651269,-500.0,0.00054794,120]
[321088807,1711890651279,-500.0,0.00054794,120]
[321088808,1711890651289,-500.0,0.00054794,120]
[321088809,1711890651298,-500.0,0.00054794,120]
[321088810,1711890651308,-1133.38715573,0.00054795,120]
[321088811,1711890651317,-1000.0,0.00054795,13]
[321088812,1711890651326,-1000.0,0.00054795,13]
[321088813,1711890651336,-1000.0,0.00054795,13]
[321088814,1711890651345,-1000.0,0.00054795,13]
[321088815,1711890651355,-1000.0,0.00054795,13]
[321088816,1711890651364,-1000.0,0.00054795,13]
[321088817,1711890651373,-1000.0,0.00054795,13]
[321088818,1711890651383,-1000.0,0.00054795,13]
[321088819,1711890651394,-1000.0,0.00054795,13]
[321088820,1711890651403,-1000.0,0.00054795,13]
[321088821,1711890651414,-1000.0,0.00054795,13]
[321088822,1711890651424,-1000.0,0.00054795,13]
[321088823,1711890651435,-1005.0,0.00054795,13]
[321088824,1711890651445,-500.0,0.00054795,120]
[321088825,1711890651455,-500.0,0.00054795,120]
[321088826,1711890651465,-500.0,0.00054795,120]
[321088827,1711890651475,-500.0,0.00054795,120]
[321088828,1711890651486,-500.0,0.00054795,120]
[321088829,1711890651495,-500.0,0.00054795,120]
[321088830,1711890651507,-500.0,0.00054795,120]
[321088831,1711890651518,-500.0,0.00054795,120]
[321088832,1711890651527,-500.0,0.00054795,120]
[321088833,1711890651537,-500.0,0.00054795,120]
[321088834,1711890651546,-500.0,0.00054795,120]
[321088835,1711890651556,-500.0,0.00054795,120]
[321088836,1711890651565,-500.0,0.00054795,120]
[321088837,1711890651575,-500.0,0.00054795,120]
[321088838,1711890651586,-500.0,0.00054795,120]